bitfinex/quotes_ETHUSD_20240820
["timestamp","ask_amount","ask_price","bid_price","bid_amount"]
[1724164452287,1.55183765,2610.8,2609.9,2.46]
[1724164452608,1.55183765,2610.8,2610.3,2.46]
[1724164452775,1.55183765,2610.8,2610.3,6.29084]
[1724164452976,1.55183765,2610.8,2610.4,4.45740744]
[1724164453174,1.55183765,2610.8,2610.4,0.62660744]
[1724164453374,1.55183765,2610.8,2610.7,7.66078]
[1724164453593,1.55183765,2610.8,2610.7,11.403758]
[1724164453813,3.21600865,2611.6,2611.0,3.82989]
[1724164454017,3.21600865,2611.6,2611.2,3.82962]
[1724164454182,3.21600865,2611.6,2611.3,2.2734]
[1724164454775,3.82892,2611.7,2611.3,2.2734]
[1724164455523,3.82882,2611.8,2611.3,2.2734]
[1724164455815,3.82893,2611.7,2611.3,2.2734]
[1724164456013,3.82893,2611.7,2610.9,6.29148]
[1724164456014,3.82923,2611.5,2610.9,6.29148]
[1724164456219,3.82923,2611.5,2611.0,0.55]
[1724164456915,3.829,2611.7,2611.0,4.37994]
[1724164457223,3.829,2611.7,2611.1,0.684134]
[1724164457575,3.82844,2612.1,2611.2,2.3452]
[1724164457777,0.41016166,2612.0,2611.2,2.3452]
[1724164458088,3.82993,2611.1,2610.9,2.3452]
[1724164458309,3.82993,2611.1,2610.4,3.83074]
[1724164458310,7.65892,2611.4,2610.4,2.3452]
[1724164458505,3.82973,2611.2,2610.4,6.1759]
[1724164459198,7.65857,2611.5,2610.6,3.83044]
[1724164459380,3.82923,2611.5,2610.7,3.83036]
[1724164459577,4.23957281,2611.4,2610.6,3.8304]
[1724164459778,3.82969,2611.2,2610.6,1.000618]
[1724164460024,0.41016281,2611.4,2610.7,2.2789]
[1724164460324,3.82973,2611.2,2610.7,2.2789]
[1724164460627,3.8301,2610.9,2610.4,2.3693]
[1724164460923,3.83052,2610.7,2610.0,2.3788]
[1724164461076,3.8305,2610.7,2610.0,2.3788]
[1724164461481,3.83055,2610.6,2610.0,2.3788]
[1724164461789,7.66098,2610.7,2610.0,2.3788]
[1724164461992,3.83014,2610.9,2610.0,2.3788]
[1724164462179,3.83014,2610.9,2610.1,0.23788]
[1724164462578,3.83014,2610.9,2610.2,3.9077041]
[1724164462878,3.83024,2610.8,2610.1,0.23788]
[1724164463079,7.66057,2610.8,2610.2,0.55]
[1724164463324,3.8307,2610.5,2610.0,2.3788]
[1724164463680,3.83092,2610.4,2610.0,2.3788]
[1724164464096,3.83098,2610.3,2610.0,2.3788]
[1724164464330,7.66151,2610.5,2610.0,2.3788]
[1724164464683,3.83086,2610.4,2610.0,2.3788]
[1724164465226,3.8307,2610.5,2610.0,2.3788]
[1724164465825,3.83055,2610.6,2610.0,2.3788]
[1724164466008,3.83098,2610.3,2609.7,2.3558]
[1724164466323,3.83098,2610.3,2609.8,0.55]
[1724164466493,3.83114,2610.2,2609.7,2.3558]
[1724164466700,3.83102,2610.3,2609.7,2.3558]
[1724164467312,3.83096,2610.4,2609.8,3.83168]
[1724164467483,7.66129,2610.6,2609.8,4.45830576]
[1724164467910,3.83068,2610.5,2609.8,4.45830576]
[1724164468245,1.55686715,2610.9,2610.2,2.3194]
[1724164468411,5.77613394,2611.0,2610.2,2.3194]
[1724164468412,3.83004,2611.0,2610.3,0.62660891]
[1724164468747,3.83003,2611.0,2610.3,0.55]
[1724164468934,3.83003,2611.0,2610.3,4.38096]
[1724164469132,3.83003,2611.0,2610.3,0.62661062]
[1724164469133,3.8301,2610.9,2610.3,0.62661062]
[1724164469296,3.82995,2611.0,2610.3,1.32750369]
[1724164469646,3.83027,2610.8,2610.3,1.25089306]
[1724164469944,3.83009,2610.9,2610.3,0.55]
[1724164470095,3.83009,2610.9,2610.3,0.62661065]
[1724164470298,3.82984,2611.1,2610.3,1.61080707]
[1724164470499,3.82984,2611.1,2610.4,3.83075]
[1724164470718,3.82995,2611.0,2610.5,0.55]
[1724164470937,3.83025,2610.8,2610.3,1.61080707]
[1724164471297,3.8301,2610.9,2610.3,1.61080707]
[1724164471498,3.8301,2610.9,2610.4,0.9784105]
[1724164471953,3.82995,2611.0,2610.4,0.9784105]
[1724164472647,3.82938,2611.4,2610.8,3.83015]
[1724164473501,3.82938,2611.4,2610.7,0.07659716]
[1724164473804,3.82838,2611.4,2610.8,0.55]
[1724164474140,1.55686715,2611.9,2611.2,6.21557]
[1724164474355,1.55686715,2612.1,2611.3,3.8295]
[1724164474505,1.55686715,2612.1,2611.4,0.07657865]
[1724164474506,3.82841,2612.1,2611.4,0.07657865]
[1724164474706,3.82859,2612.0,2611.3,0.55]
[1724164474956,3.82871,2611.9,2611.3,0.55]
[1724164475103,3.82859,2612.0,2611.3,0.55]
[1724164475447,3.8282,2612.2,2611.4,6.24293]
[1724164475599,3.8282,2612.2,2611.5,4.81340835]
[1724164476052,3.8282,2612.2,2611.6,0.07657104]
[1724164476217,3.8282,2612.2,2611.7,0.55]
[1724164476218,7.65648,2612.2,2611.7,0.55]
[1724164476422,7.65649,2612.2,2611.7,0.55]
[1724164476605,7.65649,2612.2,2611.5,4.26340835]
[1724164476606,4.02516715,2612.5,2611.6,0.55]
[1724164476803,3.82859,2612.0,2611.5,0.55]
[1724164477246,3.82859,2612.0,2611.4,2.4137]
[1724164477604,3.82808,2612.3,2611.4,2.4137]
[1724164477805,0.40251671,2612.4,2611.4,2.4137]
[1724164477806,3.82858,2612.0,2611.4,2.4137]
[1724164479000,3.82863,2611.9,2611.4,2.4137]
[1724164479501,3.82858,2612.0,2611.4,2.4137]
[1724164479705,3.82858,2612.0,2611.4,3.420974]
[1724164480021,7.65657,2612.2,2611.5,3.82919]
[1724164480223,1.95938386,2612.4,2611.4,7.250324]
[1724164480224,5.78734386,2612.4,2611.6,3.9056154]
[1724164480433,3.82766,2612.6,2611.9,2.3026]
[1724164480749,3.82766,2612.6,2611.7,0.55]
[1724164480750,1.55686715,2613.3,2612.1,2.3026]
[1724164481045,3.82717,2612.9,2612.3,3.82794]
[1724164481248,3.82681,2613.2,2612.3,3.82794]
[1724164481453,3.82702,2613.0,2612.4,0.55]
[1724164481604,4.209862,2612.9,2612.4,0.55]
[1724164481811,3.82738,2612.8,2612.3,0.55]
[1724164482005,3.82738,2612.8,2612.1,9.95909]
[1724164482006,3.82738,2612.8,2612.2,0.55]
[1724164483413,3.82326306,2612.8,2612.2,0.55]
[1724164484875,3.82326306,2612.8,2612.1,2.3026]
[1724164485058,0.38232631,2612.7,2612.1,2.3026]
[1724164485256,3.82762,2612.6,2612.1,2.3026]
[1724164485990,7.65071306,2612.8,2612.1,2.3026]
[1724164486284,3.82747,2612.7,2612.1,2.3026]
[1724164486678,3.82326306,2612.8,2612.1,6.1309]
[1724164486999,7.65065306,2612.8,2612.1,6.1309]
[1724164487188,3.82693,2613.1,2612.2,3.82804]
[1724164487361,3.82693,2613.1,2612.3,0.07655252]
[1724164487558,3.82693,2613.1,2612.4,3.82789]
[1724164487972,0.27258143,2613.3,2612.2,3.82808]
[1724164487973,3.82716,2612.9,2612.2,3.82812]
[1724164488179,3.82689,2613.1,2612.3,0.62655098]
[1724164488380,3.82689,2613.1,2612.5,2.3029]
[1724164488979,3.82703,2613.0,2612.5,2.3029]
[1724164489179,4.09926143,2613.3,2612.5,6.13053]
[1724164489405,7.92596143,2613.3,2612.6,0.55]
[1724164489605,7.92596143,2613.3,2612.6,4.37745]
[1724164489809,3.82672,2613.2,2612.6,4.37745]
[1724164490105,7.6539,2613.1,2612.5,2.3029]
[1724164490331,4.91937814,2613.2,2612.6,4.37758]
[1724164490606,1.09259814,2613.2,2612.6,4.4541225]
[1724164490832,3.82639,2613.5,2612.7,0.07654267]
[1724164490957,3.82608,2613.7,2613.1,2.4356]
[1724164491160,3.82619,2613.6,2613.1,2.4356]
[1724164491857,3.82578,2613.9,2613.2,3.82668]
[1724164492058,3.8256,2614.0,2613.3,3.82648]
[1724164492260,2.4947,2614.7,2613.5,3.8262]
[1724164492503,10.24432259,2615.2,2613.2,1.01657107]
[1724164492504,1.55686715,2615.0,2613.7,2.3379]
[1724164492702,1.55686715,2615.4,2614.8,3.82435]
[1724164492905,1.55686715,2615.4,2613.7,3.82598]
[1724164492906,3.82294,2615.8,2614.9,6.23860381]
[1724164493209,3.82265,2616.0,2614.9,6.16207]
[1724164493425,3.8222,2616.3,2615.3,3.82363]
[1724164493558,3.8227,2616.0,2615.0,1.166207]
[1724164493759,3.82249,2616.1,2615.0,0.616207]
[1724164494001,3.8231,2615.7,2615.0,0.616207]
[1724164494203,2.4947,2616.6,2614.9,2.3379]
[1724164494204,3.82327,2615.6,2614.9,2.3379]
[1724164494779,3.82221,2616.3,2614.0,3.82545]
[1724164494780,3.82301,2615.8,2614.5,2.4945]
[1724164495094,3.82411,2615.0,2614.1,5.3522]
[1724164495309,3.82439,2614.8,2614.1,2.3522]
[1724164495668,7.64861,2614.9,2613.6,2.3016]
[1724164495870,0.24469,2615.4,2613.6,2.3016]
[1724164495871,3.82453,2614.7,2613.6,2.3016]
[1724164496185,3.0,2615.2,2613.6,2.3016]
[1724164496400,3.82514,2614.3,2613.6,2.3016]
[1724164496583,0.382514,2614.2,2613.6,2.3016]
[1724164496782,0.382514,2614.2,2613.2,4.84320107]
[1724164496783,3.82541,2614.1,2613.2,3.42167107]
[1724164497379,3.82556,2614.0,2613.2,2.4051]
[1724164497784,3.82542,2614.1,2613.2,2.4051]
[1724164498190,3.82555,2614.0,2613.2,2.4051]
[1724164498368,0.382514,2614.2,2612.7,6.31613]
[1724164498369,3.82571,2613.9,2612.7,6.31613]
[1724164499017,3.0,2613.8,2612.7,6.31613]
[1724164499173,3.682571,2613.8,2612.9,3.82715]
[1724164499479,3.82563,2614.0,2613.0,3.827]
[1724164499778,3.82563,2614.0,2612.8,4.458883]
[1724164499779,3.82571,2613.9,2612.9,3.82705]
[1724164499976,4.207794,2614.2,2612.9,2.3824]
[1724164500277,3.82541,2614.1,2613.0,3.82698]
[1724164500472,3.82557,2614.0,2613.0,4.37698]
[1724164500678,0.382514,2614.2,2612.9,6.20954]
[1724164500679,4.208297,2613.9,2612.9,6.20954]
[1724164500974,0.382557,2613.9,2613.0,0.55]
[1724164501267,0.382557,2613.9,2613.2,3.8267]
[1724164501727,0.382557,2613.9,2613.0,0.55]
[1724164501728,0.382557,2613.9,2613.0,4.37696]
[1724164501929,0.382557,2613.9,2613.0,0.55]
[1724164502130,3.82606,2613.7,2613.0,0.55]
[1724164502453,3.82606,2613.7,2612.9,2.3824]
[1724164502815,3.82647,2613.4,2612.9,2.3824]
[1724164502929,3.82647,2613.4,2612.5,2.3611]
[1724164503279,3.82672,2613.2,2612.5,2.3611]
[1724164503627,3.82698,2613.1,2612.5,2.3611]
[1724164503856,3.0,2613.8,2612.0,3.82841]
[1724164503857,3.82717,2612.9,2612.1,2.3452]
[1724164504246,3.82732,2612.8,2612.1,2.3452]
[1724164504458,3.82748,2612.7,2612.1,2.3452]
[1724164504657,3.82774,2612.6,2611.6,6.17422]
[1724164504878,3.828,2612.4,2611.6,6.17422]
[1724164505072,3.828,2612.4,2611.6,2.3452]
[1724164505373,3.82822,2612.2,2611.6,2.3452]
[1724164505682,3.82849,2612.0,2611.6,2.3452]
[1724164505835,3.82849,2612.0,2611.0,3.82989]
[1724164505836,3.82849,2612.0,2611.1,2.4391]
[1724164506030,3.8288,2611.8,2611.1,2.4391]
[1724164506931,7.65771,2611.8,2611.1,2.4391]
[1724164507131,4.594611,2611.8,2611.1,2.4391]
[1724164507379,3.82916,2611.6,2611.1,2.4391]
[1724164507537,3.82916,2611.6,2610.8,3.83014]
[1724164507738,3.82916,2611.6,2610.7,2.4834]
[1724164507965,11.74327,2612.2,2610.7,2.4834]
[1724164507966,3.829,2611.7,2610.7,2.4834]
[1724164508138,3.82932,2611.5,2610.7,2.4834]
[1724164508340,3.82962,2611.3,2610.4,3.83072]
[1724164508874,3.82962,2611.3,2610.5,3.83066]
[1724164509073,3.82962,2611.3,2610.4,3.8307]
[1724164509074,3.82967,2611.2,2610.4,3.8307]
[1724164509576,3.82962,2611.3,2610.4,3.8307]
[1724164509746,3.82962,2611.3,2610.5,3.83064]
[1724164509948,3.82962,2611.3,2610.5,4.596774]
[1724164510150,7.65925,2611.3,2610.5,4.596774]
[1724164511180,3.82962,2611.3,2610.6,3.8305]
[1724164511535,3.82925,2611.5,2610.7,3.83036]
[1724164511738,3.82959,2611.3,2610.7,0.8426994]
[1724164511954,3.82959,2611.3,2610.6,3.8305]
[1724164512184,3.82959,2611.3,2610.7,3.83036]
[1724164512379,6.82898,2611.7,2610.2,2.4128]
[1724164512686,14.19657,2612.2,2610.2,2.4128]
[1724164512687,3.82908,2611.6,2610.9,3.82997]
[1724164512843,3.82908,2611.6,2611.0,3.82994]
[1724164513047,3.82892,2611.7,2611.1,0.382994]
[1724164513242,2.4373,2611.6,2610.5,19.54]
[1724164513489,3.82967,2611.2,2610.5,19.54]
[1724164513780,3.82915,2611.6,2610.8,3.8301]
[1724164514082,3.82893,2611.7,2611.0,3.82985]
[1724164514284,9.26581,2612.0,2610.9,4.45973]
[1724164514586,3.82955,2611.3,2610.7,2.4671]
[1724164514789,3.82927,2611.5,2610.9,3.83006]
[1724164515016,3.82899,2611.7,2610.9,3.83006]
[1724164515295,3.82899,2611.7,2611.0,3.82993]
[1724164515454,3.82899,2611.7,2610.9,3.83006]
[1724164515786,3.82916,2611.6,2610.9,4.842805]
[1724164515993,3.82916,2611.6,2610.9,8.672825]
[1724164516138,3.82899,2611.7,2610.9,4.842765]
[1724164516344,5.4373,2612.0,2610.7,2.4671]
[1724164516345,3.82962,2611.3,2610.7,2.4671]
[1724164516538,3.82967,2611.2,2610.7,2.4671]
[1724164516840,3.82961,2611.3,2610.5,23.37059]
[1724164516841,3.8298,2611.1,2610.5,23.37059]
[1724164517040,3.82996,2611.0,2610.5,19.54]
[1724164517251,3.82996,2611.0,2610.3,8.21178]
[1724164517485,3.82996,2611.0,2610.3,4.885318]
[1724164517698,3.8298,2611.1,2610.3,4.885318]
[1724164517699,3.8301,2610.9,2610.3,4.885318]
[1724164518186,3.8298,2611.1,2610.1,2.3326]
[1724164518187,3.83069,2610.5,2610.1,2.3326]
[1724164518389,2.4661,2611.1,2609.7,2.4749]
[1724164518390,3.83052,2610.7,2609.7,2.4749]
[1724164518603,3.83052,2610.7,2610.0,3.83139]
[1724164518794,7.66097,2610.7,2610.0,3.83133]
[1724164519088,3.83069,2610.5,2609.8,7.66318]
[1724164519243,3.83069,2610.5,2609.7,2.4749]
[1724164519449,3.83069,2610.5,2609.9,3.83155]
[1724164519671,3.83046,2610.7,2609.9,3.83155]
[1724164519878,3.83013,2610.9,2610.1,3.83118]
[1724164520145,3.82988,2611.1,2610.4,3.8308]
[1724164520361,6.82951,2611.3,2610.4,2.3339]
[1724164520580,7.65913,2611.3,2610.6,3.83052]
[1724164520781,7.65913,2611.3,2610.5,3.83054]
[1724164520782,3.83032,2610.8,2610.1,3.83116]
[1724164521094,3.83032,2610.8,2610.2,3.8311]
[1724164521248,6.82942,2611.4,2610.0,6.22291]
[1724164521444,3.83056,2610.6,2610.0,2.3916]
[1724164521665,3.82987,2611.1,2609.5,2.48]
[1724164521666,3.83124,2610.2,2609.5,2.48]
[1724164521891,7.66245,2610.2,2609.5,2.48]
[1724164522128,3.83128,2610.1,2609.5,6.31214]
[1724164522401,3.83047,2610.7,2609.1,3.83264]
[1724164522402,3.83178,2609.8,2609.1,3.83264]
[1724164522611,3.83178,2609.8,2609.1,7.66529]
[1724164522910,3.83178,2609.8,2609.1,3.83264]
[1724164523209,3.83178,2609.8,2609.2,3.83257]
[1724164523365,3.83148,2610.0,2609.3,3.83243]
[1724164523568,6.83043,2610.7,2608.8,2.48]
[1724164523772,3.83172,2609.8,2609.1,3.83265]
[1724164524621,3.83172,2609.8,2608.9,3.83295]
[1724164524622,3.83203,2609.6,2608.9,3.83295]
[1724164525411,3.83203,2609.6,2608.9,7.66587]
[1724164525711,3.83232,2609.4,2608.7,3.83318]
[1724164526694,3.83232,2609.4,2608.8,3.83317]
[1724164526914,3.83232,2609.4,2608.5,6.21395]
[1724164527068,3.83261,2609.2,2608.5,6.21395]
[1724164527376,7.66475,2609.4,2608.5,6.21393]
[1724164527578,3.83247,2609.3,2608.6,3.83338]
[1724164527794,3.83297,2609.0,2608.3,3.83383]
[1724164528167,3.83265,2609.2,2608.3,3.83383]
[1724164528168,3.83276,2609.1,2608.3,3.83382]
[1724164528882,3.83265,2609.2,2608.3,7.66765]
[1724164528883,3.83294,2609.0,2608.3,7.66765]
[1724164529110,3.83294,2609.0,2608.3,8.683605]
[1724164529312,3.83294,2609.0,2608.3,4.849775]
[1724164530626,3.83294,2609.0,2608.3,8.683605]
[1724164530827,3.83294,2609.0,2608.3,4.849775]
[1724164531130,6.892295,2609.4,2608.5,3.83353]
[1724164531430,3.8326,2609.2,2608.5,4.32614559]
[1724164531600,3.8326,2609.2,2608.2,2.4919]
[1724164531601,3.83285,2609.1,2608.2,2.4919]
[1724164531796,3.83285,2609.1,2608.2,6.32592]
[1724164532037,0.08065893,2609.0,2608.4,3.83365]
[1724164532246,3.83289,2609.0,2608.4,3.83365]
[1724164532402,3.83289,2609.0,2608.4,7.66734]
[1724164532606,3.83289,2609.0,2608.4,3.83365]
[1724164532916,3.8326,2609.2,2608.5,3.83354]
[1724164533113,0.08074221,2609.1,2608.8,3.83317]
[1724164533333,3.83216,2609.5,2608.8,3.83317]
[1724164533334,3.83216,2609.5,2608.8,3.8331]
[1724164533533,0.08064771,2609.0,2608.8,3.8331]
[1724164533732,3.83245,2609.3,2608.6,7.66673]
[1724164533928,0.08059533,2609.2,2608.7,3.83324]
[1724164534143,3.83246,2609.3,2608.6,8.5349782]
[1724164534450,0.08059539,2609.2,2608.6,8.5349782]
[1724164534610,0.08059539,2609.2,2608.6,4.7016082]
[1724164535346,3.91320539,2609.2,2608.4,3.83362]
[1724164535557,3.83276,2609.1,2608.5,3.83354]
[1724164535855,3.83276,2609.1,2608.4,3.83362]
[1724164535856,0.08050918,2609.0,2608.6,3.83346]
[1724164536021,0.08050918,2609.0,2608.6,4.600168]
[1724164536219,3.83238,2609.4,2608.8,3.8331]
[1724164536220,3.83236,2609.4,2608.8,3.8331]
[1724164536419,0.08060004,2608.9,2608.8,3.8331]
[1724164536664,0.08054441,2608.9,2608.8,3.8331]
[1724164536869,3.83244,2609.3,2608.6,4.600048]
[1724164537195,0.08069805,2609.2,2608.7,3.83323]
[1724164537557,3.91331805,2609.2,2608.6,3.83334]
[1724164537755,3.83282,2609.1,2608.4,3.83367]
[1724164537992,0.08065279,2609.1,2608.6,3.83339]
[1724164538354,3.91348279,2609.1,2608.4,4.849612]
[1724164538556,3.83295,2609.0,2608.4,4.849612]
[1724164538764,7.74651773,2609.0,2608.4,4.849612]
[1724164538970,3.83305,2608.9,2608.3,3.83389]
[1724164539193,3.83305,2608.9,2608.3,3.78389]
[1724164539194,3.77640732,2608.9,2608.3,3.78389]
[1724164539400,3.58250732,2608.9,2608.3,3.78389]
[1724164539697,3.83326,2608.8,2607.9,3.0]
[1724164539895,7.66705,2608.6,2608.0,3.83433]
[1724164540101,3.83349,2608.6,2608.0,3.83433]
[1724164540309,0.08026873,2608.5,2608.0,3.83433]
[1724164540900,0.08026873,2608.5,2608.1,3.83417]
[1724164541105,3.83327,2608.8,2608.2,3.83403]
[1724164541310,0.08046606,2608.7,2608.2,3.83403]
[1724164541610,0.08046606,2608.7,2608.2,0.07667811]
[1724164541815,0.08046606,2608.7,2608.4,3.83364]
[1724164541956,3.83289,2609.0,2608.4,3.83364]
[1724164542157,2.331,2609.6,2608.4,3.226059]
[1724164542399,0.07780739,2608.9,2608.8,3.83318]
[1724164542605,2.3616,2610.2,2609.1,3.83273]
[1724164542606,3.83151,2610.0,2609.1,3.83273]
[1724164542788,2.3616,2610.2,2608.8,3.83303]
[1724164542995,3.83246,2609.3,2608.6,3.83344]
[1724164543159,0.383246,2609.2,2608.3,6.20924]
[1724164543353,3.83286,2609.1,2608.3,6.20924]
[1724164543560,3.83301,2609.0,2608.3,6.20924]
[1724164543776,3.90898264,2609.0,2608.3,6.20924]
[1724164543978,3.83303,2608.9,2608.2,3.83394]
[1724164544234,3.83303,2608.9,2607.9,2.3754]
[1724164544235,3.83342,2608.7,2608.0,3.83426]
[1724164544385,8.05775297,2608.7,2608.0,3.83426]
[1724164544720,0.07526166,2608.6,2608.1,3.8341]
[1724164544922,0.07526166,2608.6,2608.0,7.66852]
[1724164545393,0.07526166,2608.6,2608.4,3.83376]
[1724164545591,0.07526166,2608.6,2608.1,3.83411]
[1724164545829,3.83311,2608.9,2607.9,2.3754]
[1724164546033,4.452581,2608.9,2607.9,2.996396]
[1724164546200,0.07543142,2608.8,2608.2,7.66791]
[1724164546405,0.07543142,2608.8,2608.0,3.8343]
[1724164546619,3.83342,2608.7,2608.0,3.83426]
[1724164546935,0.07492732,2608.6,2608.0,3.83426]
[1724164547137,0.07492732,2608.6,2608.1,3.83412]
[1724164547433,0.07492732,2608.6,2608.4,3.83366]
[1724164547952,0.07506451,2608.5,2608.4,3.83366]
[1724164548247,2.3616,2609.0,2608.1,3.83412]
[1724164548248,3.83315,2608.9,2608.1,3.83412]
[1724164548400,0.07500887,2608.5,2607.9,3.83436]
[1724164548746,0.07510925,2608.4,2607.9,3.83436]
[1724164548949,3.8334,2608.7,2607.9,3.83436]
[1724164548950,3.83362,2608.5,2607.9,3.83436]
[1724164549241,0.07489429,2608.3,2608.1,3.8342]
[1724164549545,3.8334,2608.7,2607.9,3.83436]
[1724164549546,0.07480925,2608.2,2607.9,3.83436]
[1724164549725,3.8334,2608.7,2607.9,3.83436]
[1724164549929,0.07490958,2608.1,2607.9,3.83436]
[1724164550099,3.83363,2608.5,2607.9,3.83436]
[1724164550444,0.38334,2608.6,2607.6,5.4835]
[1724164550445,0.07471312,2608.0,2607.6,6.83486]
[1724164550749,3.83403,2608.3,2607.6,6.83486]
[1724164550750,0.07462797,2607.9,2607.6,3.83486]
[1724164550914,3.834,2608.3,2607.6,3.83486]
[1724164551118,0.07454225,2607.8,2607.5,3.835]
[1724164551327,4.46298,2608.3,2607.5,3.835]
[1724164551328,3.83414,2608.2,2607.5,3.835]
[1724164551676,0.07445658,2607.7,2607.6,3.83488]
[1724164551846,3.83414,2608.2,2607.5,3.835]
[1724164552029,4.46298,2608.3,2607.3,3.83529]
[1724164552030,0.07425244,2607.7,2607.3,3.83528]
[1724164552231,2.4782,2607.7,2607.2,3.83549]
[1724164552438,2.4782,2607.7,2607.0,3.52902893]
[1724164552439,3.90916503,2607.6,2607.0,3.52902893]
[1724164552797,0.07419503,2607.6,2607.0,3.52902893]
[1724164553027,0.07419503,2607.6,2607.3,3.83528]
[1724164553248,0.07419503,2607.6,2607.1,3.83554]
[1724164553448,2.4782,2608.0,2607.1,3.83554]
[1724164553757,2.4782,2608.0,2607.0,3.52902893]
[1724164553758,3.83518,2607.5,2607.0,3.52902893]
[1724164553896,3.83482,2607.7,2607.0,3.52902893]
[1724164554104,3.90935331,2607.4,2607.0,3.52902893]
[1724164554300,3.83555,2607.2,2607.0,3.52902893]
[1724164554549,6.50335533,2607.4,2607.0,3.52902893]
[1724164554550,0.07427873,2607.3,2607.0,3.52902893]
[1724164554752,0.07408978,2607.1,2607.0,3.52902893]
[1724164554951,3.83498,2607.6,2607.0,7.36484893]
[1724164555163,0.07405962,2607.5,2607.1,2.4631]
[1724164555363,3.83446,2608.0,2607.4,3.78523]
[1724164555588,6.17898,2608.2,2607.3,7.67062]
[1724164555589,0.07449635,2607.9,2607.3,7.67062]
[1724164555889,3.83428,2608.1,2607.5,3.83508]
[1724164556036,0.07486222,2607.8,2607.5,3.83508]
[1724164556231,3.83428,2608.1,2607.3,3.83524]
[1724164556232,3.83428,2608.1,2607.4,3.83523]
[1724164556483,0.07477707,2607.7,2607.3,7.67054]
[1724164556791,0.07476612,2607.6,2607.4,3.83516]
[1724164556934,7.66849,2608.1,2607.5,0.383516]
[1724164557139,3.90948526,2608.0,2607.4,3.83515]
[1724164557334,0.07512526,2608.0,2607.2,3.83539]
[1724164557563,7.66909,2607.9,2607.3,3.83537]
[1724164557781,3.83488,2607.7,2607.1,3.8356]
[1724164557993,3.83488,2607.7,2607.0,3.52902893]
[1724164557994,2.52302532,2607.6,2607.0,3.52902893]
[1724164558491,3.83567,2607.1,2607.0,3.52902893]
[1724164558634,3.83547,2607.3,2607.0,3.52902893]
[1724164558635,7.67099,2607.3,2607.0,3.52902893]
[1724164558831,0.07403155,2607.1,2607.0,3.52902893]
[1724164559102,3.83567,2607.1,2607.0,3.52902893]
[1724164559398,10.99732513,2607.1,2607.0,3.52902893]
[1724164559678,17.83299513,2607.1,2607.0,3.52902893]
[1724164559883,13.99732513,2607.1,2607.0,3.52902893]
[1724164560235,0.07416513,2607.1,2607.0,3.52902893]
[1724164560649,3.8356,2607.2,2607.0,3.52902893]
[1724164560850,0.0717279,2607.1,2607.0,3.52902893]
[1724164561485,3.9073979,2607.1,2607.0,3.52902893]
[1724164562302,7.7430679,2607.1,2607.0,3.52902893]
[1724164562590,11.39162969,2607.1,2607.0,3.52902893]
[1724164564037,15.22729969,2607.1,2607.0,3.52902893]
[1724164564254,18.22729969,2607.1,2607.0,3.52902893]
[1724164564740,22.06296969,2607.1,2607.0,3.52902893]
[1724164564940,22.06296969,2607.1,2606.6,0.127109]
[1724164564941,17.76804,2606.7,2606.6,0.127109]
[1724164565180,14.0005916,2606.7,2606.6,0.127109]
[1724164565495,17.8368516,2606.7,2606.6,0.127109]
[1724164565699,3.83761,2605.8,2604.8,0.1183503]
[1724164565996,3.8371,2606.2,2605.4,3.8381]
[1724164565997,0.06786407,2605.7,2605.4,3.8381]
[1724164566304,3.8377,2605.8,2605.1,3.8386]
[1724164566584,0.06771546,2605.7,2605.1,3.83853]
[1724164566906,0.06771546,2605.7,2605.2,3.83846]
[1724164567205,2.3948,2605.6,2604.9,3.83881]
[1724164567399,3.83805,2605.5,2604.8,0.1183503]
[1724164567537,3.83884,2605.0,2604.8,0.1183503]
[1724164567735,3.90546605,2604.9,2604.8,0.1183503]
[1724164568201,6.30026605,2604.9,2604.8,0.1183503]
[1724164568486,7.74437605,2604.9,2604.8,0.1183503]
[1724164568637,8.51881365,2604.9,2604.8,0.1183503]
[1724164568844,12.35772365,2604.9,2604.8,0.1183503]
[1724164569081,30.4746068,2604.9,2604.8,0.1183503]
[1724164569292,30.4746068,2604.9,2602.5,0.06686958]
[1724164569293,9.96998,2604.1,2602.5,0.06686958]
[1724164569439,9.96998,2604.1,2602.1,3.84304]
[1724164569440,3.84009,2604.1,2602.1,3.84304]
[1724164569638,3.84009,2604.1,2602.0,0.00249144]
[1724164569639,3.84212,2602.8,2602.0,3.84567144]
[1724164569887,3.84173,2603.0,2602.0,3.84567144]
[1724164570186,0.06551513,2602.9,2602.0,0.00249144]
[1724164570405,3.0,2603.5,2602.1,2.2552]
[1724164570406,2.2898,2603.4,2602.1,2.2552]
[1724164570545,0.06574529,2603.3,2602.5,3.84242]
[1724164570892,3.84084,2603.6,2602.7,3.84208]
[1724164571043,0.06363923,2603.2,2602.1,6.09821]
[1724164571398,3.384084,2603.5,2602.7,3.84213]
[1724164571399,0.0634605,2603.1,2602.7,3.84213]
[1724164571544,3.84085,2603.6,2602.1,2.2552]
[1724164571745,2.2898,2603.7,2602.2,3.84286]
[1724164571746,3.90483091,2603.5,2602.2,3.84286]
[1724164571942,3.90483091,2603.5,2602.1,2.2552]
[1724164571943,3.84144,2603.2,2602.3,0.609806]
[1724164572240,4.23164309,2603.4,2602.1,2.2552]
[1724164572241,0.06340464,2603.1,2602.1,2.2552]
[1724164572443,0.06340464,2603.1,2602.6,3.84229]
[1724164572668,3.0,2603.6,2602.7,3.84214]
[1724164572978,3.0,2603.6,2602.4,3.8426]
[1724164572979,6.84097,2603.6,2602.6,3.84225]
[1724164573185,0.0639323,2603.5,2602.6,3.84225]
[1724164573399,3.84115,2603.4,2602.4,3.8426]
[1724164573595,0.06376143,2603.3,2602.0,6.84566144]
[1724164573890,0.06376143,2603.3,2602.8,3.84193]